lending/lending_fUSD_20250429
["ID","MTS","AMOUNT","RATE_DAILY","PERIOD"]
[359279302,1745890256328,-470.0,0.00035879,2]
[359279303,1745890256338,-208.85276124,0.00035879,2]
[359279304,1745890256348,-133913.62,0.00035879,2]
[359279305,1745890256357,-194.28432378,0.00035879,2]
[359279306,1745890256367,-470.0,0.00035879,2]
[359279307,1745890256376,-500.0,0.00035879,10]
[359279308,1745890256386,-666.0,0.00035879,10]
[359279309,1745890256399,-300.0,0.00035879,10]
[359279310,1745890256408,-161.111419,0.0003588,7]
[359279311,1745890256565,-266.896654,0.0003588,7]
[359279312,1745890256586,-228.142096,0.0003588,7]
[359279313,1745890256596,-919.91,0.0003588,6]
[359279314,1745890256606,-342.61,0.0003588,6]
[359279315,1745890256617,-1002.11,0.0003588,2]
[359279316,1745890256627,-1002.11,0.0003588,2]
[359279317,1745890256637,-279.86,0.0003588,2]
[359279318,1745890256648,-2000.0,0.0003588,2]
[359279319,1745890256658,-2000.0,0.0003588,2]
[359279320,1745890256667,-2000.0,0.0003588,2]
[359279321,1745890256677,-2000.0,0.0003588,2]
[359279322,1745890256687,-2000.0,0.0003588,2]
[359279323,1745890256696,-2000.0,0.0003588,2]
[359279324,1745890256706,-415.76577428,0.0003588,2]
[359279325,1745890256716,-500.0,0.00035888,6]
[359279326,1745890256726,-500.0,0.00035888,6]
[359279327,1745890256736,-500.0,0.00035889,10]
[359279328,1745890256746,-500.0,0.00035889,10]
[359279329,1745890256755,-500.0,0.00035889,10]
[359279330,1745890256765,-300.0,0.00035889,10]
[359279331,1745890256775,-919.91,0.00035889,6]
[359279332,1745890256786,-919.91,0.00035889,6]
[359279333,1745890256796,-919.91,0.00035889,6]
[359279334,1745890256806,-500.0,0.00035889,6]
[359279335,1745890256815,-500.0,0.00035889,6]
[359279336,1745890256825,-500.0,0.00035889,6]
[359279337,1745890256834,-500.0,0.00035889,6]
[359279338,1745890256844,-500.0,0.00035889,6]
[359279339,1745890256853,-500.0,0.00035889,6]
[359279340,1745890256863,-496.75,0.00035889,2]
[359279341,1745890256873,-588.85,0.00035889,2]
[359279342,1745890256883,-470.0,0.00035889,2]
[359279343,1745890256893,-470.0,0.00035889,2]
[359279344,1745890256903,-470.0,0.00035889,2]
[359279345,1745890256913,-623.1,0.00035889,2]
[359279346,1745890256922,-572.12,0.00035889,2]
[359279347,1745890256933,-470.0,0.00035889,2]
[359279348,1745890256944,-17884.72,0.00035889,2]
[359279349,1745890256955,-470.0,0.00035889,2]
[359279350,1745890256965,-470.0,0.00035889,2]
[359279351,1745890256975,-470.0,0.00035889,2]
[359279352,1745890256985,-838.2,0.00035889,2]
[359279353,1745890256995,-470.0,0.00035889,2]
[359279354,1745890257004,-470.0,0.00035889,2]
[359279355,1745890257014,-470.0,0.00035889,2]
[359279356,1745890257024,-470.0,0.00035889,2]
[359279357,1745890257033,-470.0,0.00035889,2]
[359279358,1745890257043,-1280.48,0.00035889,2]
[359279359,1745890257052,-470.0,0.00035889,2]
[359279360,1745890257062,-470.0,0.00035889,2]
[359279361,1745890257072,-470.0,0.00035889,2]
[359279362,1745890257081,-161.54046928,0.00035889,2]
[359279363,1745890257091,-470.0,0.00035889,2]
[359279364,1745890257100,-4761.97,0.00035889,2]
[359279365,1745890257109,-470.0,0.00035889,2]
[359279366,1745890257119,-470.0,0.00035889,2]
[359279367,1745890257128,-633.67,0.00035889,2]
[359279368,1745890257138,-570.91,0.00035889,2]
[359279369,1745890257147,-1152.11,0.00035889,2]
[359279370,1745890257157,-162.25951048,0.00035889,2]
[359279371,1745890257167,-1044.91,0.00035889,2]
[359279372,1745890257176,-470.0,0.00035889,2]
[359279373,1745890257186,-470.0,0.00035889,2]
[359279374,1745890257196,-470.0,0.00035889,2]
[359279375,1745890257206,-505.75,0.00035889,2]
[359279376,1745890257216,-1294.61,0.00035889,2]
[359279377,1745890257225,-470.0,0.00035889,2]
[359279378,1745890257235,-470.0,0.00035889,2]
[359279379,1745890257245,-1002.11,0.00035889,2]
[359279380,1745890257255,-1002.11,0.00035889,2]
[359279381,1745890257264,-1002.11,0.00035889,2]
[359279382,1745890257274,-470.0,0.00035889,2]
[359279383,1745890257283,-1205.8,0.00035889,2]
[359279384,1745890257293,-496.53,0.00035889,2]
[359279385,1745890257303,-470.0,0.00035889,2]
[359279386,1745890257313,-470.0,0.00035889,2]
[359279387,1745890257323,-169.4110417,0.00035889,2]
[359279388,1745890257332,-470.0,0.00035889,2]
[359279389,1745890257342,-3515.41,0.00035889,2]
[359279390,1745890257352,-470.0,0.00035889,2]
[359279391,1745890257362,-470.0,0.00035889,2]
[359279392,1745890257371,-470.0,0.00035889,2]
[359279393,1745890257381,-470.0,0.00035889,2]
[359279394,1745890257393,-470.0,0.00035889,2]
[359279395,1745890257403,-378.43686665,0.00035889,2]
[359279396,1745890257413,-2045.69,0.00035889,2]
[359279397,1745890257423,-470.0,0.00035889,2]
[359279398,1745890257433,-470.0,0.00035889,2]
[359279399,1745890257443,-470.0,0.00035889,2]
[359279400,1745890257452,-470.0,0.00035889,2]
[359279401,1745890257462,-470.0,0.00035889,2]
[359279402,1745890257473,-1297.7,0.00035889,2]
[359279403,1745890257483,-470.0,0.00035889,2]
[359279404,1745890257492,-470.0,0.00035889,2]
[359279405,1745890257502,-470.0,0.00035889,2]
[359279406,1745890257511,-470.0,0.00035889,2]
[359279407,1745890257521,-470.0,0.00035889,2]
[359279408,1745890257530,-470.0,0.00035889,2]
[359279409,1745890257540,-470.0,0.00035889,2]
[359279410,1745890257549,-2000.0,0.00035889,2]
[359279411,1745890257559,-707.79,0.00035889,2]
[359279412,1745890257569,-2483.18,0.00035889,2]
[359279413,1745890257579,-470.0,0.00035889,2]
[359279414,1745890257588,-926.46,0.00035889,2]
[359279415,1745890257598,-470.0,0.00035889,2]
[359279416,1745890257607,-470.0,0.00035889,2]
[359279417,1745890257616,-470.0,0.00035889,2]
[359279418,1745890257626,-51147.72,0.00035889,2]
[359279419,1745890257636,-470.0,0.00035889,2]
[359279420,1745890257645,-436.34014459,0.00035889,2]
[359279421,1745890257655,-470.0,0.00035889,2]
[359279422,1745890257664,-773.05,0.00035889,2]
[359279423,1745890257673,-491.42957727,0.00035889,2]
[359279424,1745890257683,-470.0,0.00035889,2]
[359279425,1745890257692,-610.53,0.00035889,2]
[359279426,1745890257702,-470.0,0.00035889,2]
[359279427,1745890257711,-725.92,0.00035889,2]
[359279428,1745890257721,-470.0,0.00035889,2]
[359279429,1745890257731,-195.77048614,0.00035889,2]
[359279430,1745890257740,-188.66666666,0.0003589,2]
[359279431,1745890257750,-718.831585,0.0003589,6]
[359279432,1745890257759,-1126.747013,0.0003589,6]
[359279433,1745890257769,-386.19630339,0.0003589,6]
[359279434,1745890257778,-470.0,0.0003589,6]
[359279435,1745890257788,-470.0,0.0003589,6]
[359279436,1745890257797,-470.0,0.0003589,6]
[359279437,1745890257807,-330.0,0.0003589,6]
[359279438,1745890257817,-470.0,0.0003589,6]
[359279439,1745890257826,-470.0,0.0003589,6]
[359279440,1745890257836,-470.0,0.0003589,6]
[359279441,1745890257845,-470.0,0.0003589,6]
[359279442,1745890257855,-470.0,0.0003589,6]
[359279443,1745890257864,-308.2713326,0.0003589,6]
[359279444,1745890257874,-465.02011543,0.0003589,6]
[359279445,1745890257883,-470.0,0.0003589,6]
[359279446,1745890257893,-470.0,0.0003589,6]
[359279447,1745890257903,-470.0,0.0003589,6]
[359279448,1745890257913,-470.0,0.0003589,6]
[359279449,1745890257923,-524.88,0.0003589,6]
[359279450,1745890257932,-470.0,0.0003589,6]
[359279451,1745890257942,-470.0,0.0003589,6]
[359279452,1745890257952,-470.0,0.0003589,6]
[359279453,1745890257961,-470.0,0.0003589,6]
[359279454,1745890257971,-470.0,0.0003589,6]
[359279455,1745890257980,-470.0,0.0003589,6]
[359279456,1745890257990,-470.0,0.0003589,6]
[359279457,1745890257999,-470.0,0.0003589,6]
[359279458,1745890258010,-470.0,0.0003589,6]
[359279459,1745890258019,-470.0,0.0003589,6]
[359279460,1745890258029,-492.97,0.0003589,6]
[359279461,1745890258038,-470.0,0.0003589,6]
[359279462,1745890258048,-470.0,0.0003589,6]
[359279463,1745890258057,-470.0,0.0003589,6]
[359279464,1745890258067,-470.0,0.0003589,6]
[359279465,1745890258077,-470.0,0.0003589,6]
[359279466,1745890258087,-470.0,0.0003589,6]
[359279467,1745890258097,-470.0,0.0003589,6]
[359279468,1745890258106,-470.0,0.0003589,6]
[359279469,1745890258116,-470.0,0.0003589,6]
[359279470,1745890258126,-470.0,0.0003589,6]
[359279471,1745890258135,-470.0,0.0003589,6]
[359279472,1745890258144,-470.0,0.0003589,6]
[359279473,1745890258154,-470.0,0.0003589,6]
[359279474,1745890258164,-470.0,0.0003589,6]
[359279475,1745890258175,-250.0,0.0003589,6]
[359279476,1745890258186,-246.88536534,0.0003589,6]
[359279477,1745890258195,-616.41,0.0003589,6]
[359279478,1745890258206,-470.0,0.0003589,6]
[359279479,1745890258215,-470.0,0.0003589,6]
[359279480,1745890258225,-470.0,0.0003589,6]
[359279481,1745890258236,-387.65045815,0.0003589,6]
[359279482,1745890258246,-470.0,0.0003589,6]
[359279483,1745890258256,-470.0,0.0003589,6]
[359279484,1745890258267,-470.0,0.0003589,6]
[359279485,1745890258276,-470.0,0.0003589,6]
[359279486,1745890258286,-470.0,0.0003589,6]
[359279487,1745890258295,-470.0,0.0003589,6]
[359279488,1745890258304,-470.0,0.0003589,6]
[359279489,1745890258313,-470.0,0.0003589,6]
[359279490,1745890258323,-470.0,0.0003589,6]
[359279491,1745890258333,-1010.33,0.0003589,6]
[359279492,1745890258343,-470.0,0.0003589,6]
[359279493,1745890258352,-470.0,0.0003589,6]
[359279494,1745890258362,-470.0,0.0003589,6]
[359279495,1745890258371,-470.0,0.0003589,6]
[359279496,1745890258380,-470.0,0.0003589,6]
[359279497,1745890258392,-470.0,0.0003589,6]
[359279498,1745890258402,-470.0,0.0003589,6]
[359279499,1745890258412,-470.0,0.0003589,6]
[359279500,1745890258422,-470.0,0.0003589,6]
[359279501,1745890258432,-470.0,0.0003589,6]
[359279502,1745890258442,-470.0,0.0003589,6]
[359279503,1745890258451,-437.46060029,0.0003589,6]
[359279504,1745890258900,-32.53939971,0.0003589,6]
[359279505,1745890258910,-470.0,0.0003589,6]
[359279506,1745890258919,-470.0,0.0003589,6]
[359279507,1745890258929,-470.0,0.0003589,6]
[359279508,1745890258939,-470.0,0.0003589,6]
[359279509,1745890258948,-470.0,0.0003589,6]
[359279510,1745890258958,-300.0,0.0003589,6]
[359279511,1745890258967,-470.0,0.0003589,6]
[359279512,1745890258977,-470.0,0.0003589,6]
[359279513,1745890258987,-470.0,0.0003589,6]
[359279514,1745890258997,-470.0,0.0003589,6]
[359279515,1745890259007,-697.63,0.0003589,6]
[359279516,1745890259017,-247.12460029,0.0003589,6]
[359279517,1745890267616,220.98003623,0.00038356,30]
[359279518,1745890325249,500.0,0.00036704,60]
[359279519,1745890326797,500.0,0.000378,60]
[359279520,1745890414025,172.94,0.00019,2]
[359279523,1745890628973,230.25,0.00019,2]
[359279524,1745890667044,3206.29935344,0.00034053,30]
[359279525,1745890684620,1800.0,0.00036986,60]
[359279526,1745890703024,500.0,0.0003589,60]
[359279527,1745890704576,382.57446002,0.00036986,60]
[359279528,1745890707824,3195.93237896,0.00038356,30]
[359279529,1745890710239,418.528,0.00035646,42]
[359279530,1745890710350,166.587,0.00037972,120]
[359279531,1745890710567,166.587,0.00037972,120]
[359279532,1745890710606,166.587,0.00037972,120]
[359279533,1745890710661,166.587,0.00037972,120]
[359279534,1745890733309,1024.4,0.0003835,30]
[359279535,1745891042410,1000.0,0.00038356,30]
[359279539,1745891085176,62575.26054224,0.00038356,30]
[359279540,1745891128368,1955.0,0.00038356,30]
[359279554,1745891432486,-544.02,0.00026328,2]
[359279555,1745891432499,-84.860835,0.00026328,2]
[359279556,1745891432508,-1506.21958683,0.0002646,2]
[359279557,1745891432520,-234.60041317,0.0002646,2]
[359279558,1745891432531,-500.0,0.00026495,2]
[359279559,1745891432541,-1101.99958682,0.00026547,2]
[359279560,1745891432553,-98.00041318,0.00026547,2]
[359279561,1745891432563,-300.0,0.00026547,2]
[359279562,1745891432573,-5926.28958682,0.00026548,2]
[359279563,1745891432586,-411.8444199,0.00026548,2]
[359279564,1745891432665,-1081.45599328,0.00026548,2]
[359279566,1745891432675,-532.91,0.00026574,2]
[359279568,1745891432685,-128.63168163,0.00026592,2]
[359279573,1745891432719,-121.36831837,0.00026592,2]
[359279575,1745891432728,-8244.27005463,0.00026715,2]
[359279577,1745891432740,-470.25501,0.00026715,2]
[359279579,1745891432751,-583.18548524,0.00026715,2]
[359279581,1745891432766,-2340.06945013,0.00026715,2]
[359279583,1745891432775,-250.0,0.00026755,7]
[359279585,1745891432784,-200.0,0.00026889,2]
[359279587,1745891432796,-6573.43844005,0.000269,7]
[359279589,1745891432805,-496.0,0.00027296,2]
[359279591,1745891432814,-3595.20961908,0.00027297,2]
[359279593,1745891432823,-5714.35621244,0.00027297,2]
[359279595,1745891432833,-453.47885002,0.00027297,2]
[359279597,1745891432843,-150.0,0.000273,2]
[359279599,1745891432852,-4044.68354702,0.00027387,2]
[359279601,1745891432862,-26088.83886773,0.00027387,2]
[359279644,1745891438252,-288.98,0.00026447,2]
[359279645,1745891438260,-1535.5186,0.00027387,2]
[359279646,1745891438301,-316.73,0.00027387,2]
[359279647,1745891438354,-1013.88322961,0.00027387,2]
[359279648,1745891438408,-5118.92315907,0.00027387,2]
[359279649,1745891438419,-422.74999925,0.00027387,2]
[359279650,1745891438429,-3398.91850927,0.00027387,2]
[359279651,1745891438516,-606.46541544,0.00027387,2]
[359279652,1745891438524,-478.736916,0.00027387,2]
[359279653,1745891438569,-2274.40999996,0.00027387,2]
[359279654,1745891438578,-29218.73052107,0.00027387,2]
[359279655,1745891438586,-162.15,0.00027387,2]
[359279656,1745891438594,-1924.0,0.00027387,2]
[359279657,1745891438600,-500.0,0.00027396,2]
[359279658,1745891438606,-428.99794298,0.00027396,2]
[359279659,1745891438613,-924.0,0.00027397,2]
[359279660,1745891438620,-735.84,0.00027397,2]
[359279661,1745891438628,-470.66357159,0.00027397,2]
[359279662,1745891438634,-364.99117843,0.00027397,2]
[359279663,1745891438640,-540.28795138,0.00027397,2]
[359279664,1745891438647,-470.0,0.00027397,2]
[359279665,1745891438653,-192.65300606,0.00027397,2]
[359279666,1745891438661,-509.66701739,0.00027397,2]
[359279667,1745891438667,-500.0,0.00027397,2]
[359279668,1745891438674,-406.15558954,0.00027397,2]
[359279669,1745891438680,-528.84070716,0.00027397,2]
[359279670,1745891438687,-470.0,0.00027397,2]
[359279671,1745891438693,-1000.0,0.00027397,2]
[359279672,1745891438700,-513.1,0.00027397,2]
[359279681,1745891438885,-492.2528284,0.00027397,2]
[359279682,1745891438892,-470.0,0.00027397,2]
[359279683,1745891438898,-470.0,0.00027397,2]
[359279684,1745891438906,-187.0021645,0.00027397,2]
[359279685,1745891438913,-789.47,0.00027397,2]
[359279686,1745891438920,-470.0,0.00027397,2]
[359279687,1745891438927,-544.51058844,0.00027397,2]
[359279688,1745891438935,-470.0,0.00027397,2]
[359279689,1745891438943,-604.96299255,0.00027397,2]
[359279690,1745891438953,-521.81,0.00027397,2]
[359279691,1745891438962,-470.0,0.00027397,2]
[359279692,1745891438973,-472.95,0.00027397,2]
[359279693,1745891438982,-470.0,0.00027397,2]
[359279694,1745891438991,-507.51427689,0.00027397,2]
[359279695,1745891439000,-470.0,0.00027397,2]
[359279696,1745891439010,-266.21113618,0.00027397,2]
[359279697,1745891439019,-504.73,0.00027397,2]
[359279698,1745891439029,-470.0,0.00027397,2]
[359279699,1745891439038,-470.0,0.00027397,2]
[359279700,1745891439048,-470.0,0.00027397,2]
[359279701,1745891439058,-470.0,0.00027397,2]
[359279702,1745891439067,-470.0,0.00027397,2]
[359279703,1745891439076,-273.86608913,0.00027397,2]
[359279704,1745891439086,-470.0,0.00027397,2]
[359279705,1745891439095,-476.39136021,0.00027397,2]
[359279706,1745891439105,-470.0,0.00027397,2]
[359279707,1745891439114,-470.0,0.00027397,2]
[359279708,1745891439123,-470.0,0.00027397,2]
[359279709,1745891439133,-470.0,0.00027397,2]
[359279710,1745891439143,-470.0,0.00027397,2]
[359279711,1745891439152,-470.0,0.00027397,2]
[359279712,1745891439162,-470.0,0.00027397,2]
[359279713,1745891439172,-470.0,0.00027397,2]
[359279714,1745891439181,-470.0,0.00027397,2]
[359279715,1745891439191,-470.0,0.00027397,2]
[359279716,1745891439201,-470.0,0.00027397,2]
[359279717,1745891439210,-470.0,0.00027397,2]
[359279718,1745891439220,-501.18985111,0.00027397,2]
[359279719,1745891439230,-470.0,0.00027397,2]
[359279720,1745891439239,-470.0,0.00027397,2]
[359279721,1745891439249,-470.0,0.00027397,2]
[359279722,1745891439258,-304.75025153,0.00027397,2]
[359279723,1745891439268,-470.0,0.00027397,2]
[359279724,1745891439277,-470.0,0.00027397,2]
[359279725,1745891439286,-470.0,0.00027397,2]
[359279726,1745891439295,-470.0,0.00027397,2]
[359279727,1745891439304,-470.0,0.00027397,2]
[359279728,1745891439313,-470.0,0.00027397,2]
[359279729,1745891439322,-470.0,0.00027397,2]
[359279730,1745891439331,-470.0,0.00027397,2]
[359279731,1745891439340,-521.34,0.00027397,2]
[359279732,1745891439349,-470.0,0.00027397,2]
[359279733,1745891439359,-470.0,0.00027397,2]
[359279734,1745891439369,-470.0,0.00027397,2]
[359279735,1745891439378,-470.0,0.00027397,2]
[359279736,1745891439387,-470.0,0.00027397,2]
[359279737,1745891439396,-470.0,0.00027397,2]
[359279738,1745891439405,-470.0,0.00027397,2]
[359279739,1745891439415,-470.0,0.00027397,2]
[359279740,1745891439424,-470.0,0.00027397,2]
[359279741,1745891439433,-470.0,0.00027397,2]
[359279742,1745891439441,-484.3,0.00027397,2]
[359279743,1745891439450,-470.0,0.00027397,2]
[359279744,1745891439459,-470.0,0.00027397,2]
[359279745,1745891439468,-470.0,0.00027397,2]
[359279746,1745891439478,-470.0,0.00027397,2]
[359279747,1745891439487,-470.0,0.00027397,2]
[359279748,1745891439495,-571.14,0.00027397,2]
[359279749,1745891439504,-470.0,0.00027397,2]
[359279750,1745891439513,-545.09,0.00027397,2]
[359279751,1745891439521,-470.0,0.00027397,2]
[359279752,1745891439530,-470.0,0.00027397,2]
[359279753,1745891439539,-470.0,0.00027397,2]
[359279754,1745891439547,-470.0,0.00027397,2]
[359279755,1745891439556,-661.1,0.00027397,2]
[359279756,1745891439565,-470.0,0.00027397,2]
[359279757,1745891439574,-470.0,0.00027397,2]
[359279758,1745891439583,-470.0,0.00027397,2]
[359279759,1745891439593,-1617.95,0.00027397,2]
[359279760,1745891439602,-470.0,0.00027397,2]
[359279761,1745891439612,-470.0,0.00027397,2]
[359279762,1745891439621,-470.0,0.00027397,2]
[359279763,1745891439630,-470.0,0.00027397,2]
[359279764,1745891439639,-470.0,0.00027397,2]
[359279765,1745891439648,-518.75,0.00027397,2]
[359279766,1745891439657,-470.0,0.00027397,2]
[359279767,1745891439666,-470.0,0.00027397,2]
[359279768,1745891439676,-470.0,0.00027397,2]
[359279769,1745891439686,-355.34528977,0.00027397,2]
[359279770,1745891439696,-470.0,0.00027397,2]
[359279771,1745891439706,-470.0,0.00027397,2]
[359279772,1745891439715,-470.0,0.00027397,2]
[359279773,1745891439726,-789.9,0.00027397,2]
[359279774,1745891439736,-470.0,0.00027397,2]
[359279775,1745891439745,-231.38917371,0.00027397,2]
[359279776,1745891439759,-470.0,0.00027397,2]
[359279777,1745891439768,-470.0,0.00027397,2]
[359279778,1745891439778,-470.0,0.00027397,2]
[359279779,1745891439787,-470.0,0.00027397,2]
[359279780,1745891439799,-470.0,0.00027397,2]
[359279781,1745891439809,-845.94,0.00027397,2]
[359279782,1745891439818,-470.0,0.00027397,2]
[359279783,1745891439828,-470.0,0.00027397,2]
[359279784,1745891439839,-493.82,0.00027397,2]
[359279785,1745891439848,-470.0,0.00027397,2]
[359279786,1745891439857,-470.0,0.00027397,2]
[359279787,1745891439867,-470.0,0.00027397,2]
[359279788,1745891439876,-470.0,0.00027397,2]
[359279789,1745891439885,-706.07,0.00027397,2]
[359279790,1745891439895,-575.23,0.00027397,2]
[359279791,1745891439904,-500.0,0.00027397,2]
[359279792,1745891439913,-415.93834185,0.00027397,2]
[359279793,1745891439927,-470.0,0.00027397,2]
[359279794,1745891439944,-470.0,0.00027397,2]
[359279795,1745891439957,-470.0,0.00027397,2]
[359279796,1745891439972,-633.13,0.00027397,2]
[359279797,1745891439989,-470.0,0.00027397,2]
[359279798,1745891440004,-470.0,0.00027397,2]
[359279799,1745891440016,-470.0,0.00027397,2]
[359279800,1745891440032,-547.18,0.00027397,2]
[359279801,1745891440049,-470.0,0.00027397,2]
[359279802,1745891440066,-470.0,0.00027397,2]
[359279803,1745891440082,-470.0,0.00027397,2]
[359279805,1745891440096,-470.0,0.00027397,2]
[359279806,1745891440109,-470.0,0.00027397,2]
[359279807,1745891440126,-412.81077716,0.00027397,2]
[359279808,1745891440141,-470.0,0.00027397,2]
[359279809,1745891440152,-470.0,0.00027397,2]
[359279810,1745891440166,-470.0,0.00027397,2]
[359279811,1745891440178,-721.02,0.00027397,2]
[359279812,1745891440187,-470.0,0.00027397,2]
[359279813,1745891440202,-470.0,0.00027397,2]
[359279814,1745891440216,-470.0,0.00027397,2]
[359279815,1745891440228,-470.0,0.00027397,2]
[359279816,1745891440242,-810.22,0.00027397,2]
[359279817,1745891440256,-470.0,0.00027397,2]
[359279818,1745891440272,-470.0,0.00027397,2]
[359279819,1745891440285,-608.48,0.00027397,2]
[359279820,1745891440299,-401.86906816,0.00027397,2]
[359279821,1745891440312,-470.0,0.00027397,2]
[359279822,1745891440325,-500.0,0.00027397,2]
[359279823,1745891440339,-567.75,0.00027397,2]
[359279824,1745891440353,-470.0,0.00027397,2]
[359279825,1745891440366,-470.0,0.00027397,2]
[359279826,1745891440379,-470.0,0.00027397,2]
[359279827,1745891440393,-470.0,0.00027397,2]
[359279828,1745891440406,-470.0,0.00027397,2]
[359279829,1745891440420,-575.6,0.00027397,2]
[359279830,1745891440434,-504.66,0.00027397,2]
[359279831,1745891440447,-470.0,0.00027397,2]
[359279832,1745891440460,-470.0,0.00027397,2]
[359279833,1745891440474,-481.09346887,0.00027397,2]
[359279834,1745891440488,-470.0,0.00027397,2]
[359279835,1745891440503,-669.21,0.00027397,2]
[359279836,1745891440517,-470.0,0.00027397,2]
[359279837,1745891440530,-501.59,0.00027397,2]
[359279838,1745891440544,-470.0,0.00027397,2]
[359279839,1745891440557,-470.0,0.00027397,2]
[359279840,1745891440571,-411.23061238,0.00027397,2]
[359279841,1745891440584,-470.0,0.00027397,2]
[359279842,1745891440598,-575.94,0.00027397,2]
[359279843,1745891440611,-470.0,0.00027397,2]
[359279844,1745891440625,-470.0,0.00027397,2]
[359279845,1745891440638,-470.0,0.00027397,2]
[359279846,1745891440651,-694.09,0.00027397,2]
[359279847,1745891440665,-470.0,0.00027397,2]
[359279848,1745891440679,-470.0,0.00027397,2]
[359279849,1745891440692,-472.50035282,0.00027397,2]
[359279850,1745891440705,-476.74,0.00027397,2]
[359279851,1745891440719,-470.0,0.00027397,2]
[359279852,1745891440733,-470.0,0.00027397,2]
[359279853,1745891440746,-517.71557083,0.00027397,2]
[359279854,1745891440762,-153.27615473,0.00027397,2]
[359279855,1745891440775,-400.0,0.00027397,2]
[359279856,1745891440789,-470.0,0.00027397,2]
[359279857,1745891440802,-470.0,0.00027397,2]
[359279858,1745891440817,-698.7,0.00027397,2]
[359279859,1745891440831,-470.0,0.00027397,2]
[359279860,1745891440843,-470.0,0.00027397,2]
[359279861,1745891440856,-209.23155031,0.00027397,2]
[359279862,1745891440870,-470.0,0.00027397,2]
[359279863,1745891440885,-470.0,0.00027397,2]
[359279864,1745891440900,-477.83503156,0.00027397,2]
[359279865,1745891440914,-500.0,0.00027397,2]
[359279866,1745891440929,-500.0,0.00027397,2]
[359279867,1745891440943,-470.0,0.00027397,2]
[359279868,1745891440957,-376.41831324,0.00027397,2]
[359279869,1745891440971,-470.0,0.00027397,2]
[359279870,1745891440984,-711.07,0.00027397,2]
[359279871,1745891440998,-470.0,0.00027397,2]
[359279872,1745891441012,-470.0,0.00027397,2]
[359279873,1745891441025,-470.0,0.00027397,2]
[359279875,1745891441040,-470.0,0.00027397,2]
[359279878,1745891441054,-1073.63,0.00027397,2]
[359279880,1745891441068,-470.0,0.00027397,2]
[359279882,1745891441082,-470.0,0.00027397,2]
[359279885,1745891441096,-548.56842744,0.00027397,2]
[359279887,1745891441110,-351.02085922,0.00027397,2]
[359279890,1745891441124,-470.0,0.00027397,2]
[359279892,1745891441137,-470.0,0.00027397,2]
[359279894,1745891441150,-470.0,0.00027397,2]
[359279897,1745891441165,-678.29,0.00027397,2]
[359279899,1745891441178,-470.0,0.00027397,2]
[359279902,1745891441192,-470.0,0.00027397,2]
[359279904,1745891441205,-470.0,0.00027397,2]
[359279906,1745891441219,-470.0,0.00027397,2]
[359279907,1745891441232,-470.0,0.00027397,2]
[359279908,1745891441245,-470.0,0.00027397,2]
[359279909,1745891441258,-470.0,0.00027397,2]